bitfinex-derivatives/quotes_BTCF0:USTF0_20240913
["timestamp","ask_amount","ask_price","bid_price","bid_amount"]
[1726195976354,0.23804133,58084.0,58083.0,0.21365825]
[1726195976544,0.23804133,58084.0,58083.0,0.2138142]
[1726195976745,0.23804133,58084.0,58083.0,0.12801424]
[1726195977346,0.23804133,58084.0,58083.0,0.21382314]
[1726195977542,0.23804133,58084.0,58083.0,0.12801424]
[1726195980751,0.086079,58083.0,58081.0,0.08608]
[1726195980954,0.08608,58082.0,58081.0,0.08608]
[1726195982649,0.08708,58082.0,58081.0,0.08608]
[1726195983845,0.08808,58082.0,58081.0,0.08608]
[1726195985250,0.08808,58082.0,58081.0,0.13761717]
[1726195985754,0.08808,58082.0,58081.0,0.08608]
[1726195987756,0.180365,58093.0,58085.0,0.086075]
[1726195987955,0.086067,58091.0,58090.0,0.12]
[1726195988260,0.090062,58095.0,58091.0,0.086067]
[1726195988461,0.206062,58095.0,58092.0,0.36686294]
[1726195988751,0.206062,58095.0,58093.0,0.28079794]
[1726195988965,0.206062,58095.0,58094.0,0.28079794]
[1726195989151,0.23699399,58095.0,58094.0,0.28079794]
[1726195990461,0.23699399,58095.0,58094.0,0.12810349]
[1726195990953,0.24499399,58095.0,58094.0,0.12810349]
[1726195991452,0.24699399,58095.0,58094.0,0.12810349]
[1726195991862,0.24899399,58095.0,58094.0,0.12810349]
[1726195993458,0.24899399,58095.0,58094.0,0.23113584]
[1726195994054,0.24899399,58095.0,58094.0,0.23027405]
[1726195995657,0.3439712,58095.0,58092.0,0.086065]
[1726195995862,0.12,58093.0,58092.0,0.086065]
[1726195996172,0.21497721,58093.0,58092.0,0.086065]
[1726195996350,0.1621478,58093.0,58092.0,0.086065]
[1726195997757,0.1681478,58093.0,58092.0,0.086065]
[1726195997967,0.1701478,58093.0,58092.0,0.086065]
[1726195999567,0.1701478,58093.0,58092.0,0.446865]
[1726196001264,0.0501478,58093.0,58092.0,0.446865]
[1726196001462,0.1701478,58093.0,58092.0,0.446865]
[1726196002662,0.128,58093.0,58092.0,0.65989017]
[1726196004059,0.128,58093.0,58092.0,0.65988168]
[1726196005571,0.008,58093.0,58092.0,0.65988168]
[1726196006083,0.086056,58099.0,58098.0,0.086057]
[1726196006264,0.086056,58099.0,58098.0,0.446857]
[1726196007163,0.099056,58099.0,58098.0,0.446857]
[1726196007970,0.219056,58099.0,58098.0,0.446857]
[1726196008166,0.228056,58099.0,58098.0,0.15469967]
[1726196008673,0.228056,58099.0,58098.0,0.086057]
[1726196008863,0.086057,58098.0,58097.0,0.06864267]
[1726196009063,0.142,58099.0,58096.0,0.06864267]
[1726196009064,0.086058,58097.0,58096.0,0.06864267]
[1726196009266,0.086058,58097.0,58095.0,0.086061]
[1726196009567,0.12,58096.0,58095.0,0.086061]
[1726196010170,0.119,58096.0,58095.0,0.086061]
[1726196010572,0.086058,58097.0,58095.0,0.2989854]
[1726196010767,0.086058,58097.0,58095.0,0.086061]
[1726196010768,0.28291197,58096.0,58095.0,0.086061]
[1726196011076,0.29191197,58096.0,58095.0,0.087061]
[1726196011676,0.13722023,58096.0,58095.0,0.087061]
[1726196011868,0.29191603,58096.0,58095.0,0.087061]
[1726196012068,0.13722023,58096.0,58095.0,0.087061]
[1726196012766,0.28294098,58096.0,58095.0,0.087061]
[1726196012966,0.12822023,58096.0,58095.0,0.087061]
[1726196013466,0.12822023,58096.0,58095.0,0.086061]
[1726196013467,0.09497466,58096.0,58095.0,0.086061]
[1726196013674,0.10397466,58096.0,58095.0,0.087061]
[1726196013869,0.19003466,58096.0,58095.0,0.087061]
[1726196014072,0.25866652,58096.0,58095.0,0.087061]
[1726196015168,0.22542044,58096.0,58095.0,0.087061]
[1726196015369,0.25866669,58096.0,58095.0,0.087061]
[1726196015573,0.39741008,58096.0,58095.0,0.087061]
[1726196016575,0.22542044,58096.0,58095.0,0.087061]
[1726196017787,0.13044578,58096.0,58095.0,0.27970151]
[1726196023165,0.13044578,58096.0,58095.0,0.2798733]
[1726196024574,0.13044578,58096.0,58095.0,0.12814707]
[1726196025278,0.13044578,58096.0,58095.0,0.27989896]
[1726196025783,0.13044578,58096.0,58095.0,0.12814707]
[1726196026883,0.13044578,58096.0,58095.0,0.21415538]
[1726196027277,0.13044578,58096.0,58095.0,0.12814707]
[1726196028585,0.13044578,58096.0,58095.0,0.1282215]
[1726196029481,0.13044578,58096.0,58095.0,0.21422513]
[1726196029783,0.13044578,58096.0,58095.0,0.1282215]
[1726196031680,0.13044578,58096.0,58095.0,0.08700198]
[1726196032788,0.17259638,58096.0,58095.0,0.001]
[1726196036377,0.25092963,58096.0,58095.0,0.001]
[1726196036588,0.13044578,58096.0,58095.0,0.001]
[1726196037483,0.25092963,58096.0,58095.0,0.001]
[1726196038688,0.086066,58092.0,58091.0,0.004]
[1726196038891,0.086069,58090.0,58089.0,0.3608]
[1726196040096,0.133663,58094.0,58092.0,0.086065]
[1726196040393,0.014,58096.0,58095.0,0.086061]
[1726196040595,0.014,58096.0,58095.0,0.206061]
[1726196040795,0.086052,58101.0,58098.0,0.086055]
[1726196040998,0.086052,58101.0,58100.0,0.3608]
[1726196041291,0.086052,58101.0,58100.0,0.63880076]
[1726196042294,0.111052,58101.0,58100.0,0.63880076]
[1726196042995,0.111052,58101.0,58100.0,0.48762738]
[1726196043299,0.111052,58101.0,58100.0,0.27791713]
[1726196043702,0.111052,58101.0,58100.0,0.12682738]
[1726196046595,0.111052,58101.0,58100.0,0.12679797]
[1726196048001,0.2392649,58101.0,58099.0,0.086054]
[1726196048205,0.1282129,58100.0,58099.0,0.086054]
[1726196049595,0.1382129,58100.0,58099.0,0.086054]
[1726196051499,0.1512129,58100.0,58099.0,0.086054]
[1726196051698,0.15121452,58100.0,58099.0,0.086054]
[1726196052407,0.21098984,58100.0,58099.0,0.086054]
[1726196052707,0.30595938,58100.0,58099.0,0.086054]
[1726196053210,0.15121452,58100.0,58099.0,0.086054]
[1726196054299,0.32199244,58100.0,58099.0,0.086054]
[1726196054503,0.18444288,58100.0,58099.0,0.086054]
[1726196056003,0.109054,58100.0,58099.0,0.086054]
[1726196065320,0.109054,58100.0,58099.0,0.17194513]
[1726196066522,0.109054,58100.0,58099.0,0.29882876]
[1726196067828,0.109054,58100.0,58099.0,0.21293763]
[1726196068711,0.06599796,58100.0,58099.0,0.21293763]
[1726196069317,0.06599796,58100.0,58099.0,0.31603063]
[1726196070925,0.30033266,58104.0,58099.0,0.086054]
[1726196071127,0.08456446,58108.0,58103.0,0.3608]
[1726196071327,0.0476,58133.0,58116.0,0.08603]
[1726196071328,0.008,58117.0,58116.0,0.08603]
[1726196071532,0.12,58129.0,58119.0,0.086025]
[1726196071822,0.086014,58127.0,58123.0,0.3608]
[1726196072024,0.12,58125.0,58123.0,0.3608]
[1726196072229,0.0471,58124.0,58123.0,0.3608]
[1726196073321,0.0471,58124.0,58123.0,0.3618]
[1726196074928,0.0471,58124.0,58123.0,0.3608]
[1726196075132,0.0611,58124.0,58123.0,0.3618]
[1726196075628,0.0631,58124.0,58123.0,0.3628]
[1726196075832,0.0641,58124.0,58123.0,0.002]
[1726196077822,0.0551,58124.0,58123.0,0.001]
[1726196078026,0.0651,58124.0,58123.0,0.002]
[1726196079129,0.0551,58124.0,58123.0,0.001]
[1726196079332,0.0661,58124.0,58123.0,0.002]
[1726196081021,0.0551,58124.0,58123.0,0.001]
[1726196081223,0.0581,58124.0,58123.0,0.001]
[1726196081538,0.0661,58124.0,58123.0,0.002]
[1726196083930,0.0581,58124.0,58123.0,0.001]
[1726196084132,0.0661,58124.0,58123.0,0.002]
[1726196086135,0.11890536,58124.0,58123.0,0.002]
[1726196086331,0.16490536,58124.0,58123.0,0.002]
[1726196091033,0.15690536,58124.0,58123.0,0.001]
[1726196091331,0.16690536,58124.0,58123.0,0.002]
[1726196092035,0.16690536,58124.0,58123.0,0.08802]
[1726196092937,0.1141,58124.0,58123.0,0.08802]
[1726196093346,0.200118,58124.0,58123.0,0.08802]
[1726196094628,0.191118,58124.0,58123.0,0.08702]
[1726196094831,0.191118,58124.0,58123.0,0.08802]
[1726196094832,0.202118,58124.0,58123.0,0.08802]
[1726196095236,0.203118,58124.0,58123.0,0.08802]
[1726196100948,0.25592314,58124.0,58123.0,0.08802]
[1726196102751,0.25592314,58124.0,58123.0,0.002]
[1726196102752,0.61672314,58124.0,58123.0,0.002]
[1726196103058,0.67842553,58124.0,58123.0,0.002]
[1726196103361,0.31762553,58124.0,58123.0,0.002]
[1726196103654,0.51616,58123.0,58110.0,0.00112]
[1726196103855,0.51616,58123.0,58100.0,0.3276]
[1726196103856,0.12,58111.0,58100.0,0.00108]
[1726196104158,0.12,58101.0,58100.0,0.086054]
[1726196104451,0.17282325,58101.0,58100.0,0.086054]
[1726196104847,0.05282325,58101.0,58100.0,0.086054]
[1726196105158,0.17182325,58101.0,58100.0,0.086054]
[1726196105465,0.17182325,58101.0,58097.0,0.3608]
[1726196105648,0.12,58098.0,58097.0,0.3608]
[1726196105848,0.086051,58102.0,58097.0,0.3608]
[1726196105849,0.12,58100.0,58097.0,0.3608]
[1726196106148,0.0497,58099.0,58097.0,0.3608]
[1726196106546,0.0497,58099.0,58097.0,0.3618]
[1726196107559,0.0557,58099.0,58097.0,0.3618]
[1726196108056,0.009,58099.0,58098.0,0.1311474]
[1726196109050,0.11542214,58100.0,58098.0,0.1311474]
[1726196109258,0.11542214,58100.0,58099.0,0.08571298]
[1726196109452,0.11542214,58100.0,58098.0,0.44751298]
[1726196110660,0.11542214,58100.0,58098.0,0.3618]
[1726196110856,0.11542214,58100.0,58097.0,0.17177098]
[1726196111055,0.13242214,58100.0,58097.0,0.17177098]
[1726196111458,0.13242214,58100.0,58097.0,0.086058]
[1726196111860,0.12242214,58100.0,58097.0,0.086058]
[1726196112058,0.13142214,58100.0,58097.0,0.086058]
[1726196112565,0.13142214,58100.0,58099.0,0.06850185]
[1726196112773,0.12442214,58100.0,58097.0,0.086058]
[1726196112973,0.13042214,58100.0,58099.0,0.06850101]
[1726196113468,0.21547614,58100.0,58098.0,0.06850101]
[1726196113667,0.21547614,58100.0,58097.0,0.087058]
[1726196113668,0.21547614,58100.0,58099.0,0.06850101]
[1726196113975,0.17541974,58100.0,58099.0,0.001]
[1726196114160,0.17541974,58100.0,58099.0,0.06948799]
[1726196114472,0.17541974,58100.0,58099.0,0.001]
[1726196114659,0.17641974,58100.0,58099.0,0.06948799]
[1726196115062,0.17641974,58100.0,58099.0,0.001]
[1726196115665,0.16841974,58100.0,58098.0,0.15454399]
[1726196115868,0.08236574,58100.0,58099.0,0.15454299]
[1726196116064,0.01,58100.0,58099.0,0.15454299]
[1726196116362,0.01,58100.0,58099.0,0.086055]
[1726196117363,0.017,58100.0,58099.0,0.087055]
[1726196117571,0.007,58100.0,58099.0,0.087055]
[1726196117867,0.017,58100.0,58099.0,0.087055]
[1726196118464,0.007,58100.0,58099.0,0.15552633]
[1726196118662,0.018,58100.0,58099.0,0.15552633]
[1726196120265,0.224054,58100.0,58099.0,0.001]
[1726196120471,0.224054,58100.0,58099.0,0.05235925]
[1726196121061,0.224054,58100.0,58099.0,0.001]
[1726196121271,0.224054,58100.0,58099.0,0.05235925]
[1726196121873,0.224054,58100.0,58099.0,0.001]
[1726196122075,0.224054,58100.0,58099.0,0.05236023]
[1726196122871,0.269354,58100.0,58099.0,0.05236023]
[1726196123073,0.269354,58100.0,58099.0,0.001]
[1726196131084,0.269354,58100.0,58099.0,0.06947133]
[1726196131298,0.149354,58100.0,58099.0,0.06947133]
[1726196131481,0.269354,58100.0,58099.0,0.06947133]
[1726196131686,0.269354,58100.0,58099.0,0.001]
[1726196133388,0.269354,58100.0,58099.0,0.13215547]
[1726196134285,0.269354,58100.0,58099.0,0.13215546]
[1726196137482,0.1833,58100.0,58099.0,0.13215546]
[1726196137791,0.269354,58100.0,58099.0,0.32131831]
[1726196137989,0.269354,58100.0,58099.0,0.087055]
[1726196137990,0.32217934,58100.0,58099.0,0.087055]
[1726196139187,0.32217878,58100.0,58099.0,0.087055]
[1726196143690,0.20217878,58100.0,58099.0,0.087055]
[1726196144194,0.20217877,58100.0,58099.0,0.087055]
[1726196146083,0.149354,58100.0,58099.0,0.30412895]
[1726196149097,0.149354,58100.0,58099.0,0.17297927]
[1726196149399,0.149354,58100.0,58099.0,0.21820467]
[1726196153202,0.149354,58100.0,58099.0,0.15582948]
[1726196157406,0.5441,58100.0,58098.0,0.06877674]
[1726196157603,0.12,58099.0,58093.0,0.05158924]
[1726196157801,1.0241,58100.0,58087.0,0.0859681]
[1726196157802,0.4808,58094.0,58089.0,0.05158924]
[1726196158106,0.08607,58089.0,58087.0,0.05158924]
[1726196158303,0.08607,58089.0,58086.0,0.05158924]
[1726196158606,0.12,58086.0,58085.0,0.05158924]
[1726196159300,0.12,58086.0,58080.0,0.0899681]
[1726196159509,0.12,58086.0,58084.0,0.05154979]
[1726196159510,0.113,58086.0,58084.0,0.05154979]
[1726196160308,0.114,58086.0,58085.0,0.008]
[1726196160608,0.200074,58086.0,58085.0,0.008]
[1726196160811,0.201074,58086.0,58085.0,0.008]
[1726196162111,0.086076,58085.0,58079.0,0.086084]
[1726196163308,0.088076,58085.0,58079.0,0.086084]
[1726196164205,0.086078,58084.0,58079.0,0.086084]
[1726196164407,0.002,58085.0,58079.0,0.086084]
[1726196164408,0.086079,58083.0,58079.0,0.086084]
[1726196166104,0.087079,58083.0,58079.0,0.086084]
[1726196166315,0.088079,58083.0,58079.0,0.086084]
[1726196166607,0.122,58083.0,58078.0,0.3608]
[1726196166913,0.086084,58080.0,58078.0,0.3608]
[1726196168108,0.078931,58083.0,58079.0,0.13118819]
[1726196168313,0.078931,58083.0,58081.0,0.10292333]
[1726196168514,0.16501,58083.0,58082.0,0.13118819]
[1726196168819,0.16601,58083.0,58082.0,0.13118819]
[1726196169508,0.16701,58083.0,58082.0,0.13118819]
[1726196171505,0.002,58083.0,58082.0,0.13118819]
[1726196171718,0.002,58083.0,58082.0,0.21826819]
[1726196173025,0.0462,58085.0,58082.0,0.32119152]
[1726196173209,0.086078,58084.0,58083.0,0.13118819]
[1726196173912,0.086078,58084.0,58083.0,0.13118691]
[1726196174724,0.087078,58084.0,58083.0,0.13118691]
[1726196175808,0.088078,58084.0,58083.0,0.13218691]
[1726196176330,0.088078,58084.0,58083.0,0.001]
[1726196183833,0.257878,58084.0,58083.0,0.001]
[1726196185418,0.257878,58084.0,58083.0,0.05244562]
[1726196186522,0.257878,58084.0,58083.0,0.001]
[1726196190116,0.31071745,58084.0,58083.0,0.001]
[1726196192218,0.31071713,58084.0,58083.0,0.001]
[1726196195637,0.39679513,58084.0,58083.0,0.001]
[1726196195932,0.39679513,58084.0,58080.0,0.3608]
[1726196195933,0.086088,58077.0,58075.0,0.004]
[1726196196235,0.086088,58077.0,58071.0,0.3276]
[1726196196236,0.53363913,58077.0,58071.0,0.3276]
[1726196196425,0.53363913,58077.0,58069.0,0.004]
[1726196196426,0.3093666,58072.0,58069.0,0.004]
[1726196196621,0.3093666,58072.0,58068.0,0.0861]
[1726196196622,0.29200573,58071.0,58068.0,0.0861]
[1726196196818,0.05283913,58070.0,58068.0,0.0861]
[1726196197021,0.12,58069.0,58068.0,0.0861]
[1726196197230,0.17285059,58069.0,58068.0,0.0861]
[1726196197432,0.12,58069.0,58068.0,0.0861]
[1726196197623,0.17285059,58069.0,58068.0,0.0861]
[1726196198221,0.29202437,58069.0,58068.0,0.56385248]
[1726196198421,0.29302437,58069.0,58068.0,0.56385248]
[1726196198840,0.29402437,58069.0,58068.0,0.56385248]
[1726196199234,0.29402437,58069.0,58068.0,0.68409147]
[1726196201037,0.17402437,58069.0,58068.0,0.68409147]
[1726196201338,0.17402437,58069.0,58068.0,0.68285815]
[1726196201721,0.17402437,58069.0,58068.0,0.56261916]
[1726196202134,0.17402437,58069.0,58068.0,0.56241223]
[1726196207039,0.17402437,58069.0,58068.0,0.37697191]
[1726196207643,0.002,58069.0,58068.0,0.37697191]
[1726196208231,0.002,58069.0,58068.0,0.56237253]
[1726196210544,0.002,58069.0,58068.0,0.68253143]
[1726196211052,0.002,58069.0,58068.0,1.04333143]
[1726196213158,0.07453234,58074.0,58072.0,0.086094]
[1726196213360,0.10360397,58074.0,58072.0,0.086094]
[1726196214444,0.10460397,58074.0,58072.0,0.086094]
[1726196216156,0.10460397,58074.0,58073.0,0.086094]
[1726196217355,0.10460397,58074.0,58073.0,0.088094]
[1726196217854,0.10360397,58074.0,58073.0,0.088094]
[1726196220457,0.10360397,58074.0,58073.0,0.32228301]
[1726196223260,0.10360397,58074.0,58073.0,0.21930391]
[1726196224257,0.10360397,58074.0,58073.0,0.37888857]
[1726196225461,0.10360397,58074.0,58073.0,0.37897162]
[1726196226052,0.10360397,58074.0,58073.0,0.29287762]
[1726196226255,0.10360397,58074.0,58073.0,0.13320991]
[1726196226256,0.46440397,58074.0,58073.0,0.13320991]
[1726196226450,0.15100397,58074.0,58073.0,0.13320991]
[1726196227061,0.51180397,58074.0,58073.0,0.13320991]
[1726196228459,0.55397056,58074.0,58073.0,0.002]
[1726196229765,0.19317056,58074.0,58073.0,0.002]
[1726196229957,0.15100397,58074.0,58073.0,0.002]
[1726196230563,0.0474,58074.0,58073.0,0.122]
[1726196231557,0.0474,58074.0,58073.0,0.208094]
[1726196232766,0.0474,58074.0,58073.0,0.23655186]
[1726196233364,0.0474,58074.0,58073.0,0.208094]
[1726196234165,0.0474,58074.0,58073.0,0.568894]
[1726196234956,0.0503,58079.0,58073.0,0.4828]
[1726196235164,0.0503,58079.0,58078.0,0.086086]
[1726196235165,0.0463,58079.0,58078.0,0.086086]
[1726196235464,0.51958392,58082.0,58078.0,0.086086]
[1726196235465,0.004,58082.0,58081.0,0.086082]
[1726196235768,0.15478392,58084.0,58081.0,0.29050794]
[1726196236062,0.15478392,58084.0,58083.0,0.3608]
[1726196236266,0.15478392,58084.0,58083.0,0.77130794]
[1726196237066,0.15478392,58084.0,58083.0,0.85738694]
[1726196237867,0.16378392,58084.0,58083.0,0.85738694]
[1726196238070,0.009,58084.0,58083.0,0.85738694]
[1726196238365,0.009,58084.0,58083.0,0.69807381]
[1726196238566,0.014,58084.0,58083.0,0.69807381]
[1726196239165,0.009,58084.0,58083.0,0.69807381]
[1726196239364,0.016,58084.0,58083.0,0.80109131]
[1726196241369,0.016,58084.0,58083.0,0.69807381]
[1726196243365,0.016,58084.0,58083.0,0.566879]
[1726196250373,0.11099267,58084.0,58083.0,0.566879]
[1726196250872,0.11099329,58084.0,58083.0,0.566879]
[1726196258375,0.016,58084.0,58083.0,0.80107611]
[1726196258591,0.17202437,58085.0,58084.0,0.086077]
[1726196258900,0.17202437,58085.0,58084.0,0.21725661]
[1726196259473,0.17202437,58085.0,58084.0,0.32027411]
[1726196259882,0.18202437,58085.0,58084.0,0.32027411]
[1726196260481,0.18202437,58085.0,58084.0,0.21725661]
[1726196260787,0.19002437,58085.0,58084.0,0.21825661]
[1726196262080,0.19002437,58085.0,58084.0,0.37712295]
[1726196262286,0.19002437,58085.0,58084.0,0.21825661]
[1726196262480,0.19002437,58085.0,58084.0,0.32145735]
[1726196263477,0.19002437,58085.0,58084.0,0.37727366]
[1726196263677,0.19002437,58085.0,58084.0,0.21825661]
[1726196264486,0.19002437,58085.0,58084.0,0.37732538]
[1726196265480,0.19002437,58085.0,58084.0,0.087077]
[1726196266782,0.23217758,58085.0,58084.0,0.087077]
[1726196268491,0.06015321,58085.0,58084.0,0.087077]
[1726196270189,0.0601532,58085.0,58084.0,0.087077]
[1726196273389,0.018,58085.0,58084.0,0.37738639]
[1726196276695,0.29003359,58089.0,58084.0,0.37738639]
[1726196276696,0.29003359,58089.0,58088.0,0.086071]
[1726196276892,0.29003359,58089.0,58088.0,0.21725164]
[1726196276893,0.28603359,58089.0,58088.0,0.21725164]
[1726196278296,0.28603359,58089.0,58088.0,0.21825164]
[1726196278297,0.29803359,58089.0,58088.0,0.21825164]
[1726196278592,0.30703359,58089.0,58088.0,0.21925164]
[1726196278793,0.15237,58089.0,58088.0,0.21925164]
[1726196279986,0.15237,58089.0,58088.0,0.21924939]
[1726196280386,0.24735967,58089.0,58088.0,0.088071]
[1726196280998,0.36735967,58089.0,58088.0,0.002]
[1726196283498,0.36736417,58089.0,58088.0,0.002]
[1726196286699,0.42910301,58089.0,58088.0,0.002]
[1726196288492,0.27237,58089.0,58088.0,0.002]
[1726196293704,0.358441,58089.0,58088.0,0.002]
[1726196293898,0.27237,58089.0,58088.0,0.002]
[1726196296805,0.15237,58089.0,58088.0,0.002]
[1726196297006,0.15237,58089.0,58088.0,0.088071]
[1726196297392,0.15237,58089.0,58088.0,0.002]
[1726196299504,0.15237,58089.0,58088.0,0.0708733]
[1726196299703,0.15237,58089.0,58088.0,0.002]
[1726196299900,0.01,58089.0,58088.0,0.58003553]
[1726196301103,0.01,58089.0,58088.0,0.66603512]
[1726196302409,0.01,58089.0,58088.0,0.448871]
[1726196302899,0.01,58089.0,58088.0,0.53487059]
[1726196303101,0.01,58089.0,58088.0,0.448871]
[1726196304404,0.052149,58089.0,58088.0,0.448871]
[1726196304606,0.10497992,58089.0,58088.0,0.448871]
[1726196308405,0.18194844,58089.0,58088.0,0.448871]
[1726196308606,0.27692966,58089.0,58088.0,0.448871]
[1726196308805,0.27692966,58089.0,58088.0,0.088071]
[1726196309109,0.27692966,58089.0,58088.0,0.448871]
[1726196310503,0.18194844,58089.0,58088.0,0.448871]
[1726196310715,0.01,58089.0,58088.0,0.448871]
[1726196315009,0.01,58089.0,58088.0,0.534942]
[1726196315312,0.004,58093.0,58092.0,0.086066]
[1726196315513,0.004,58097.0,58096.0,0.08606]
[1726196315716,0.090058,58098.0,58097.0,0.086058]
[1726196315717,0.086058,58098.0,58097.0,0.086058]
[1726196317309,0.095058,58098.0,58097.0,0.087058]
[1726196317910,0.095058,58098.0,58097.0,0.088058]
[1726196318120,0.098058,58098.0,58097.0,0.088058]
[1726196318619,0.19303417,58098.0,58097.0,0.088058]
[1726196320727,0.19303417,58098.0,58097.0,0.11899158]
[1726196320909,0.10697617,58098.0,58097.0,0.11899158]
[1726196322923,0.10697617,58098.0,58097.0,0.088058]
[1726196325518,0.012,58098.0,58097.0,0.088058]
[1726196332225,0.098057,58098.0,58097.0,0.088058]
[1726196332430,0.098057,58098.0,58097.0,0.002]
[1726196332431,0.218057,58098.0,58097.0,0.002]
[1726196332738,0.26020666,58098.0,58097.0,0.002]
[1726196333036,0.26020695,58098.0,58097.0,0.002]
[1726196337538,0.62100695,58098.0,58097.0,0.002]
[1726196337832,0.578857,58098.0,58097.0,0.002]
[1726196338038,0.62100744,58098.0,58097.0,0.002]
[1726196340635,0.82163179,58098.0,58097.0,0.002]
[1726196340838,0.73557479,58098.0,58097.0,0.002]
[1726196341037,0.82163179,58098.0,58097.0,0.002]
[1726196341225,0.73557784,58098.0,58097.0,0.002]
[1726196341443,0.82163484,58098.0,58097.0,0.002]
[1726196341626,0.73557784,58098.0,58097.0,0.002]
[1726196342339,0.086071,58088.0,58087.0,0.3648]
[1726196342639,1.85193784,58098.0,58085.0,0.086075]
[1726196342640,0.086074,58086.0,58085.0,0.086075]
[1726196343030,0.18106022,58086.0,58085.0,0.086075]
[1726196343637,0.18006022,58086.0,58085.0,0.086075]
[1726196343838,0.09498622,58086.0,58085.0,0.086075]
[1726196344438,0.09398622,58086.0,58085.0,0.086075]
[1726196344840,0.18925557,58086.0,58085.0,0.086075]
[1726196345038,0.24608999,58086.0,58085.0,0.087075]
[1726196345236,0.24908999,58086.0,58085.0,0.088075]
[1726196346135,0.05983442,58086.0,58085.0,0.088075]
[1726196346541,0.05983442,58086.0,58085.0,0.11960318]
[1726196348642,0.007,58086.0,58085.0,0.11960318]
[1726196354754,0.007,58086.0,58085.0,0.088075]
[1726196355744,0.10198658,58086.0,58085.0,0.088075]
[1726196355956,0.04915205,58086.0,58085.0,0.088075]
[1726196356255,0.05983473,58086.0,58085.0,0.088075]
[1726196356457,0.10198678,58086.0,58085.0,0.088075]
[1726196360274,0.10198678,58086.0,58085.0,0.448875]
[1726196361364,0.10198678,58086.0,58085.0,0.088075]
[1726196361757,0.10198678,58086.0,58085.0,0.448875]
[1726196363564,0.27398794,58086.0,58085.0,0.448875]
[1726196363760,0.17200116,58086.0,58085.0,0.73835401]
[1726196366463,0.17200116,58086.0,58085.0,0.37755401]
[1726196366664,0.17200116,58086.0,58085.0,0.73835401]
[1726196370072,0.08607,58089.0,58087.0,0.086072]
[1726196370275,0.08607,58089.0,58088.0,0.28947901]
[1726196370769,0.08607,58089.0,58087.0,0.086072]
[1726196370770,0.18105682,58089.0,58087.0,0.086072]
[1726196370975,0.0477,58088.0,58087.0,0.086072]
[1726196371160,0.0477,58088.0,58087.0,0.087072]
[1726196371161,0.14268682,58088.0,58087.0,0.087072]
[1726196371567,0.14268682,58088.0,58087.0,0.088072]
[1726196371871,0.43482882,58088.0,58087.0,0.002]
[1726196372763,0.43582882,58088.0,58087.0,0.002]
[1726196373468,0.22975782,58088.0,58087.0,0.002]
[1726196373672,0.41913446,58088.0,58087.0,0.002]
[1726196373867,0.22975782,58088.0,58087.0,0.002]
[1726196374265,0.41913446,58088.0,58087.0,0.002]
[1726196376775,0.22975782,58088.0,58087.0,0.002]
[1726196377278,0.41913446,58088.0,58087.0,0.002]
[1726196377472,0.48087143,58088.0,58087.0,0.002]
[1726196377664,0.41913446,58088.0,58087.0,0.002]
[1726196377868,0.22975782,58088.0,58087.0,0.002]
[1726196378782,0.134771,58088.0,58087.0,0.13318344]
[1726196385786,0.134771,58088.0,58087.0,0.002]
[1726196386284,0.134771,58088.0,58087.0,0.05357175]
[1726196389994,0.134771,58088.0,58087.0,0.002]
[1726196390283,0.134771,58088.0,58087.0,0.15683526]
[1726196390475,0.087071,58088.0,58087.0,0.15683526]
[1726196391076,0.087071,58088.0,58087.0,0.088073]
[1726196391481,0.087071,58088.0,58087.0,0.15681607]
[1726196391888,0.087071,58088.0,58087.0,0.088073]
[1726196392186,0.087071,58088.0,58087.0,0.15681607]
[1726196392382,0.087071,58088.0,58087.0,0.088073]
[1726196392687,0.087071,58088.0,58087.0,0.15681607]
[1726196392882,0.18205712,58088.0,58087.0,0.088073]
[1726196394387,0.18205712,58088.0,58087.0,0.11875041]
[1726196395384,0.18205712,58088.0,58087.0,0.088073]
[1726196395779,0.18206213,58088.0,58087.0,0.088073]
[1726196396479,0.22806213,58088.0,58087.0,0.088073]
[1726196400286,0.31413313,58088.0,58087.0,0.002]
[1726196400491,0.26129598,58088.0,58087.0,0.002]
[1726196400692,0.31413987,58088.0,58087.0,0.002]
[1726196400990,0.219142,58088.0,58087.0,0.002]
[1726196402295,0.219142,58088.0,58087.0,0.0005]
[1726196402993,0.133071,58088.0,58087.0,0.0005]
[1726196403195,0.253071,58088.0,58087.0,0.05206279]
[1726196404494,0.253071,58088.0,58087.0,0.0520735]
[1726196404790,0.133071,58088.0,58087.0,0.0005]
[1726196404982,0.133071,58088.0,58087.0,0.05207284]
[1726196405184,0.133071,58088.0,58087.0,0.0005]
[1726196407885,0.22806477,58088.0,58087.0,0.0005]
[1726196408188,0.34806477,58088.0,58087.0,0.0005]
[1726196413901,0.52018593,58088.0,58087.0,0.0005]
[1726196414095,0.34806538,58088.0,58087.0,0.0005]
[1726196414990,0.34656538,58088.0,58087.0,0.0005]
[1726196415799,0.251571,58088.0,58087.0,0.0005]
[1726196418587,0.251571,58088.0,58087.0,0.0692625]
[1726196419393,0.251571,58088.0,58087.0,0.0005]
[1726196423904,0.251571,58088.0,58087.0,0.05207934]
[1726196425804,0.337642,58088.0,58087.0,0.05207934]
[1726196426004,0.337642,58088.0,58081.0,0.004]
[1726196426005,1.454122,58088.0,58083.0,0.05157934]
[1726196426199,1.454122,58088.0,58080.0,0.06876718]
[1726196426200,0.446877,58084.0,58082.0,0.05157934]
[1726196426405,0.446877,58084.0,58077.0,0.004]
[1726196426406,0.1672,58083.0,58080.0,0.05160002]
[1726196426698,0.206082,58081.0,58080.0,0.05160002]
[1726196428102,0.206082,58081.0,58079.0,0.05160002]
[1726196428103,0.086083,58080.0,58079.0,0.05160002]
[1726196428412,0.206083,58080.0,58079.0,0.05160002]
[1726196430209,0.207083,58080.0,58079.0,0.05160002]
[1726196430909,0.086087,58078.0,58074.0,0.446892]
[1726196432210,0.086087,58078.0,58074.0,0.086092]